[Event "Titled Tuesday Blitz December 27 Late 2022"]
[White "Potapova, Margarita"]
[Black "Vovk, Orest"]
[WhiteFideId "14126869"]
[BlackFideId "14113490"]
[WhiteElo "2104"]
[BlackElo "2315"]
[Result "0-1"]
[Round "09"]
[TimeControl "180+2"]
[Date "2022.12.27"]
[WhiteClock "0:00:31"]
[BlackClock "0:01:09"]

1. d4 {[%clk 0:02:59]}  e5 {[%clk 0:02:58]} 2. dxe5 {[%clk 0:02:57]}  Nc6 {[%clk 0:02:58]} 3. Nf3 {[%clk 0:02:23]}  Qe7 {[%clk 0:02:55]} 4. Nbd2 {[%clk 0:02:24]}  Nxe5 {[%clk 0:02:53]} 5. Nxe5 {[%clk 0:02:24]}  Qxe5 {[%clk 0:02:53]} 6. Nf3 {[%clk 0:02:25]}  Qd6 {[%clk 0:02:51]} 7. Qd3 {[%clk 0:02:21]}  Qxd3 {[%clk 0:02:51]} 8. exd3 {[%clk 0:02:21]}  Nf6 {[%clk 0:02:52]} 9. d4 {[%clk 0:02:18]}  d5 {[%clk 0:02:52]} 10. Bd3 {[%clk 0:02:18]}  Be7 {[%clk 0:02:50]} 11. O-O {[%clk 0:02:17]}  O-O {[%clk 0:02:51]} 12. h3 {[%clk 0:02:17]}  h6 {[%clk 0:02:50]} 13. Bf4 {[%clk 0:02:17]}  c6 {[%clk 0:02:50]} 14. Rfe1 {[%clk 0:02:15]}  Be6 {[%clk 0:02:50]} 15. c3 {[%clk 0:02:11]}  Rfe8 {[%clk 0:02:50]} 16. Ne5 {[%clk 0:02:10]}  Nd7 {[%clk 0:02:48]} 17. Ng6 {[%clk 0:02:08]}  Bg5 {[%clk 0:02:43]} 18. Bd6 {[%clk 0:02:01]}  fxg6 {[%clk 0:02:40]} 19. Bxg6 {[%clk 0:01:58]}  Bf7 {[%clk 0:02:39]} 20. Bf5 {[%clk 0:01:54]}  Rxe1+ {[%clk 0:02:37]} 21. Rxe1 {[%clk 0:01:55]}  Re8 {[%clk 0:02:36]} 22. Rd1 {[%clk 0:01:42]}  Nb6 {[%clk 0:02:35]} 23. b3 {[%clk 0:01:11]}  Re2 {[%clk 0:02:20]} 24. a4 {[%clk 0:01:11]}  Be6 {[%clk 0:02:12]} 25. Bd3 {[%clk 0:01:09]}  Rb2 {[%clk 0:02:07]} 26. f4 {[%clk 0:01:01]}  Bh4 {[%clk 0:02:03]} 27. f5 {[%clk 0:01:00]}  Bd7 {[%clk 0:02:03]} 28. g3 {[%clk 0:00:57]}  Bf6 {[%clk 0:02:02]} 29. a5 {[%clk 0:00:51]}  Nc8 {[%clk 0:02:01]} 30. Bb4 {[%clk 0:00:51]}  Rxb3 {[%clk 0:02:00]} 31. Bc2 {[%clk 0:00:46]}  Rb2 {[%clk 0:01:59]} 32. Rd2 {[%clk 0:00:46]}  b6 {[%clk 0:01:16]} 33. axb6 {[%clk 0:00:45]}  Nxb6 {[%clk 0:01:15]} 34. Kh2 {[%clk 0:00:42]}  Nc4 {[%clk 0:01:15]} 35. Re2 {[%clk 0:00:42]}  a5 {[%clk 0:01:15]} 36. Bc5 {[%clk 0:00:41]}  Bxf5 {[%clk 0:01:12]} 37. Re8+ {[%clk 0:00:31]}  Kf7 {[%clk 0:01:10]} 38. Rf8+ {[%clk 0:00:31]}  Kg6 {[%clk 0:01:09]} 0-1


[Site "https://www.chess.com"]

[Event "Titled Tuesday Blitz December 27 Late 2022"]
[White "Putnam, Liam"]
[Black "Kamsky, Gata"]
[WhiteFideId "30938279"]
[BlackFideId "2000024"]
[WhiteElo "2285"]
[BlackElo "2665"]
[Result "1/2-1/2"]
[Round "09"]
[TimeControl "180+2"]
[Date "2022.12.27"]
[WhiteClock "0:00:11"]
[BlackClock "0:00:10"]

1. e4 {[%clk 0:03:00]}  c5 {[%clk 0:02:55]} 2. Nf3 {[%clk 0:02:59]}  e6 {[%clk 0:02:54]} 3. d4 {[%clk 0:03:00]}  cxd4 {[%clk 0:02:53]} 4. Nxd4 {[%clk 0:03:00]}  a6 {[%clk 0:02:52]} 5. Bd3 {[%clk 0:03:00]}  Bc5 {[%clk 0:02:46]} 6. Nb3 {[%clk 0:03:00]}  Ba7 {[%clk 0:02:44]} 7. Nc3 {[%clk 0:02:52]}  Nc6 {[%clk 0:02:41]} 8. O-O {[%clk 0:02:46]}  Nf6 {[%clk 0:02:39]} 9. Qe2 {[%clk 0:02:45]}  d6 {[%clk 0:02:35]} 10. Kh1 {[%clk 0:02:44]}  e5 {[%clk 0:02:35]} 11. f4 {[%clk 0:02:28]}  exf4 {[%clk 0:01:57]} 12. Bxf4 {[%clk 0:02:28]}  Ng4 {[%clk 0:01:45]} 13. Nd5 {[%clk 0:02:05]}  O-O {[%clk 0:01:42]} 14. Rad1 {[%clk 0:01:57]}  Nge5 {[%clk 0:01:40]} 15. Nd2 {[%clk 0:01:53]}  Bg4 {[%clk 0:01:38]} 16. Nf3 {[%clk 0:01:46]}  Nd4 {[%clk 0:01:37]} 17. Qd2 {[%clk 0:01:38]}  Nexf3 {[%clk 0:01:36]} 18. gxf3 {[%clk 0:01:39]}  Bxf3+ {[%clk 0:01:34]} 19. Rxf3 {[%clk 0:01:39]}  Nxf3 {[%clk 0:01:34]} 20. Qg2 {[%clk 0:01:38]}  Ne5 {[%clk 0:01:31]} 21. Rf1 {[%clk 0:01:17]}  Kh8 {[%clk 0:01:27]} 22. Be2 {[%clk 0:01:00]}  Rc8 {[%clk 0:01:23]} 23. c3 {[%clk 0:00:59]}  Re8 {[%clk 0:01:05]} 24. Bg5 {[%clk 0:00:54]}  Qa5 {[%clk 0:00:39]} 25. Nf6 {[%clk 0:00:47]}  Re6 {[%clk 0:00:37]} 26. Nh5 {[%clk 0:00:26]}  Rg6 {[%clk 0:00:35]} 27. Nf4 {[%clk 0:00:25]}  Rxg5 {[%clk 0:00:36]} 28. Qxg5 {[%clk 0:00:26]}  Qd8 {[%clk 0:00:32]} 29. Qg2 {[%clk 0:00:25]}  Qh4 {[%clk 0:00:32]} 30. Nd3 {[%clk 0:00:22]}  Nxd3 {[%clk 0:00:29]} 31. Bxd3 {[%clk 0:00:23]}  Rc7 {[%clk 0:00:25]} 32. h3 {[%clk 0:00:20]}  g6 {[%clk 0:00:25]} 33. Bc2 {[%clk 0:00:20]}  Kg7 {[%clk 0:00:24]} 34. Bb3 {[%clk 0:00:21]}  Be3 {[%clk 0:00:23]} 35. Qf3 {[%clk 0:00:21]}  Bg5 {[%clk 0:00:21]} 36. Rd1 {[%clk 0:00:19]}  Bf4 {[%clk 0:00:20]} 37. Rf1 {[%clk 0:00:17]}  Be5 {[%clk 0:00:20]} 38. Bxf7 {[%clk 0:00:17]}  Qg3 {[%clk 0:00:18]} 39. Qxg3 {[%clk 0:00:16]}  Bxg3 {[%clk 0:00:19]} 40. Bd5 {[%clk 0:00:17]}  Be5 {[%clk 0:00:19]} 41. Kg2 {[%clk 0:00:17]}  b5 {[%clk 0:00:19]} 42. a3 {[%clk 0:00:16]}  a5 {[%clk 0:00:19]} 43. Rf3 {[%clk 0:00:16]}  h5 {[%clk 0:00:19]} 44. h4 {[%clk 0:00:14]}  Bf6 {[%clk 0:00:19]} 45. Kh3 {[%clk 0:00:14]}  Rc8 {[%clk 0:00:18]} 46. Be6 {[%clk 0:00:14]}  Rb8 {[%clk 0:00:18]} 47. Bd5 {[%clk 0:00:14]}  Re8 {[%clk 0:00:17]} 48. Bc6 {[%clk 0:00:13]}  Re5 {[%clk 0:00:17]} 49. Bd5 {[%clk 0:00:13]}  Re7 {[%clk 0:00:13]} 50. Rg3 {[%clk 0:00:13]}  Ra7 {[%clk 0:00:12]} 51. Rg2 {[%clk 0:00:13]}  Be5 {[%clk 0:00:11]} 52. Rc2 {[%clk 0:00:13]}  Rc7 {[%clk 0:00:11]} 53. Rf2 {[%clk 0:00:12]}  Ra7 {[%clk 0:00:10]} 54. Kg2 {[%clk 0:00:12]}  Rc7 {[%clk 0:00:09]} 55. Rf3 {[%clk 0:00:13]}  Bf6 {[%clk 0:00:09]} 56. Kg3 {[%clk 0:00:13]}  Be5+ {[%clk 0:00:09]} 57. Kh3 {[%clk 0:00:14]}  Bf6 {[%clk 0:00:10]} 58. Be6 {[%clk 0:00:14]}  Be5 {[%clk 0:00:10]} 59. Ba2 {[%clk 0:00:13]}  Bf6 {[%clk 0:00:10]} 60. Bd5 {[%clk 0:00:11]}  Be5 {[%clk 0:00:10]} 61. Kg2 {[%clk 0:00:11]} 1/2-1/2


[Site "https://www.chess.com"]

[Event "Titled Tuesday Blitz December 27 Late 2022"]
[White "Remolar Gallen, Jose"]
[Black "Martinez Ramirez, Lennis"]
[WhiteFideId "2215187"]
[BlackFideId "3509079"]
[WhiteElo "2285"]
[BlackElo "2426"]
[Result "0-1"]
[Round "09"]
[TimeControl "180+2"]
[Date "2022.12.27"]
[WhiteClock "0:00:02"]
[BlackClock "0:00:26"]

1. d4 {[%clk 0:03:00]}  d5 {[%clk 0:02:57]} 2. c4 {[%clk 0:03:01]}  c6 {[%clk 0:02:57]} 3. Nc3 {[%clk 0:03:01]}  Nf6 {[%clk 0:02:56]} 4. Nf3 {[%clk 0:03:00]}  g6 {[%clk 0:02:51]} 5. Bf4 {[%clk 0:02:54]}  Bg7 {[%clk 0:02:47]} 6. e3 {[%clk 0:02:47]}  Ne4 {[%clk 0:02:46]} 7. Rc1 {[%clk 0:02:43]}  Nxc3 {[%clk 0:02:44]} 8. Rxc3 {[%clk 0:02:41]}  O-O {[%clk 0:02:42]} 9. cxd5 {[%clk 0:02:30]}  cxd5 {[%clk 0:02:42]} 10. Be2 {[%clk 0:02:27]}  Nc6 {[%clk 0:02:41]} 11. O-O {[%clk 0:02:26]}  Bf5 {[%clk 0:02:41]} 12. Qa4 {[%clk 0:02:23]}  Qa5 {[%clk 0:02:29]} 13. Qxa5 {[%clk 0:01:48]}  Nxa5 {[%clk 0:02:30]} 14. Rfc1 {[%clk 0:01:48]}  Rfc8 {[%clk 0:02:29]} 15. Rc7 {[%clk 0:01:38]}  f6 {[%clk 0:02:01]} 16. h3 {[%clk 0:01:32]}  Bf8 {[%clk 0:01:55]} 17. g4 {[%clk 0:01:27]}  Rxc7 {[%clk 0:01:52]} 18. Rxc7 {[%clk 0:01:25]}  Be6 {[%clk 0:01:53]} 19. b4 {[%clk 0:01:11]}  Nc6 {[%clk 0:01:40]} 20. Rxb7 {[%clk 0:01:10]}  Bc8 {[%clk 0:01:36]} 21. Rc7 {[%clk 0:00:59]}  Nxb4 {[%clk 0:01:34]} 22. a3 {[%clk 0:00:57]}  Ba6 {[%clk 0:01:33]} 23. Bxa6 {[%clk 0:00:44]}  Nxa6 {[%clk 0:01:34]} 24. Rc6 {[%clk 0:00:43]}  e5 {[%clk 0:01:32]} 25. dxe5 {[%clk 0:00:41]}  Nc5 {[%clk 0:01:27]} 26. exf6 {[%clk 0:00:36]}  Ne4 {[%clk 0:01:27]} 27. Ng5 {[%clk 0:00:32]}  Bxa3 {[%clk 0:01:24]} 28. f7+ {[%clk 0:00:15]}  Kf8 {[%clk 0:01:23]} 29. Rc7 {[%clk 0:00:12]}  Be7 {[%clk 0:01:15]} 30. Nxh7+ {[%clk 0:00:07]}  Kxf7 {[%clk 0:01:15]} 31. Ng5+ {[%clk 0:00:07]}  Ke8 {[%clk 0:01:11]} 32. h4 {[%clk 0:00:03]}  a5 {[%clk 0:01:10]} 33. Nxe4 {[%clk 0:00:02]}  dxe4 {[%clk 0:01:10]} 34. h5 {[%clk 0:00:03]}  gxh5 {[%clk 0:01:10]} 35. gxh5 {[%clk 0:00:04]}  a4 {[%clk 0:01:09]} 36. Rc2 {[%clk 0:00:04]}  a3 {[%clk 0:01:09]} 37. Ra2 {[%clk 0:00:04]}  Ra5 {[%clk 0:01:08]} 38. h6 {[%clk 0:00:05]}  Kf7 {[%clk 0:01:07]} 39. Kg2 {[%clk 0:00:05]}  Rb5 {[%clk 0:01:07]} 40. Ra1 {[%clk 0:00:02]}  Kg6 {[%clk 0:01:07]} 41. f3 {[%clk 0:00:02]}  Rb2+ {[%clk 0:01:06]} 42. Kg3 {[%clk 0:00:02]}  exf3 {[%clk 0:00:57]} 43. Kxf3 {[%clk 0:00:03]}  a2 {[%clk 0:00:56]} 44. Be5 {[%clk 0:00:03]}  Rc2 {[%clk 0:00:46]} 45. Bd4 {[%clk 0:00:04]}  Kxh6 {[%clk 0:00:42]} 46. Ke4 {[%clk 0:00:04]}  Bb4 {[%clk 0:00:40]} 47. Kd5 {[%clk 0:00:05]}  Kg5 {[%clk 0:00:39]} 48. e4 {[%clk 0:00:05]}  Kf4 {[%clk 0:00:35]} 49. Rf1+ {[%clk 0:00:05]}  Kg3 {[%clk 0:00:35]} 50. e5 {[%clk 0:00:05]}  Rd2 {[%clk 0:00:34]} 51. e6 {[%clk 0:00:05]}  Bc3 {[%clk 0:00:33]} 52. e7 {[%clk 0:00:03]}  Rxd4+ {[%clk 0:00:33]} 53. Ke6 {[%clk 0:00:01]}  Re4+ {[%clk 0:00:33]} 54. Kf7 {[%clk 0:00:01]}  Be1 {[%clk 0:00:27]} 55. Rxe1 {[%clk 0:00:01]}  Rxe1 {[%clk 0:00:26]} 56. e8=Q {[%clk 0:00:01]}  Rxe8 {[%clk 0:00:26]} 57. Kxe8 {[%clk 0:00:02]}  a1=Q {[%clk 0:00:26]} 0-1


[Site "https://www.chess.com"]

[Event "Titled Tuesday Blitz December 27 Late 2022"]
[White "Rengifo Blancas, Renzo Jhonathan"]
[Black "Bilan, Danila"]
[WhiteFideId "3807185"]
[BlackFideId "24161918"]
[WhiteElo "2131"]
[BlackElo "2303"]
[Result "1-0"]
[Round "09"]
[TimeControl "180+2"]
[Date "2022.12.27"]
[WhiteClock "0:02:01"]
[BlackClock "0:00:01"]

1. d4 {[%clk 0:03:00]}  d5 {[%clk 0:02:59]} 2. c4 {[%clk 0:03:01]}  c6 {[%clk 0:03:00]} 3. cxd5 {[%clk 0:03:01]}  cxd5 {[%clk 0:03:00]} 4. Nc3 {[%clk 0:03:02]}  Nf6 {[%clk 0:02:56]} 5. Nf3 {[%clk 0:03:03]}  Nc6 {[%clk 0:02:56]} 6. Bf4 {[%clk 0:03:03]}  Bf5 {[%clk 0:02:57]} 7. e3 {[%clk 0:03:03]}  e6 {[%clk 0:02:56]} 8. Bd3 {[%clk 0:03:03]}  Bg6 {[%clk 0:02:55]} 9. O-O {[%clk 0:03:03]}  Bd6 {[%clk 0:02:55]} 10. Rc1 {[%clk 0:03:03]}  Bxf4 {[%clk 0:02:48]} 11. exf4 {[%clk 0:03:04]}  O-O {[%clk 0:02:43]} 12. Ne5 {[%clk 0:03:02]}  Rc8 {[%clk 0:02:38]} 13. Bb5 {[%clk 0:02:56]}  Qb6 {[%clk 0:02:31]} 14. Bxc6 {[%clk 0:02:55]}  bxc6 {[%clk 0:02:29]} 15. Na4 {[%clk 0:02:56]}  Qb7 {[%clk 0:01:50]} 16. Qb3 {[%clk 0:02:50]}  Qxb3 {[%clk 0:01:30]} 17. axb3 {[%clk 0:02:51]}  Ne4 {[%clk 0:01:31]} 18. Nxc6 {[%clk 0:02:50]}  Ra8 {[%clk 0:01:22]} 19. Nc5 {[%clk 0:02:34]}  f6 {[%clk 0:00:53]} 20. Nxe6 {[%clk 0:02:33]}  Rfe8 {[%clk 0:00:52]} 21. Nc7 {[%clk 0:02:33]}  Nd2 {[%clk 0:00:32]} 22. Nxa8 {[%clk 0:02:25]}  Nxf1 {[%clk 0:00:26]} 23. Nc7 {[%clk 0:02:25]}  Re2 {[%clk 0:00:15]} 24. Kxf1 {[%clk 0:02:24]}  Rxb2 {[%clk 0:00:12]} 25. Ne7+ {[%clk 0:02:24]}  Kf7 {[%clk 0:00:12]} 26. Nxg6 {[%clk 0:02:24]}  hxg6 {[%clk 0:00:11]} 27. Nxd5 {[%clk 0:02:24]}  Rxb3 {[%clk 0:00:12]} 28. Ne3 {[%clk 0:02:24]}  a5 {[%clk 0:00:12]} 29. d5 {[%clk 0:02:22]}  a4 {[%clk 0:00:11]} 30. Rc7+ {[%clk 0:02:21]}  Kf8 {[%clk 0:00:12]} 31. Ra7 {[%clk 0:02:22]}  a3 {[%clk 0:00:12]} 32. d6 {[%clk 0:02:22]}  Rd3 {[%clk 0:00:12]} 33. Ke2 {[%clk 0:02:20]}  Rxd6 {[%clk 0:00:12]} 34. Rxa3 {[%clk 0:02:20]}  Kg8 {[%clk 0:00:12]} 35. Ra7 {[%clk 0:02:20]}  Kh7 {[%clk 0:00:12]} 36. f5 {[%clk 0:02:21]}  g5 {[%clk 0:00:12]} 37. Kf3 {[%clk 0:02:20]}  Kh6 {[%clk 0:00:11]} 38. Ra8 {[%clk 0:02:20]}  Kh7 {[%clk 0:00:11]} 39. h3 {[%clk 0:02:18]}  Rb6 {[%clk 0:00:11]} 40. Re8 {[%clk 0:02:17]}  Rd6 {[%clk 0:00:09]} 41. Re6 {[%clk 0:02:17]}  Rd4 {[%clk 0:00:09]} 42. g3 {[%clk 0:02:15]}  Rb4 {[%clk 0:00:09]} 43. Re7 {[%clk 0:02:15]}  Rd4 {[%clk 0:00:08]} 44. Ng4 {[%clk 0:02:15]}  Rd6 {[%clk 0:00:05]} 45. h4 {[%clk 0:02:15]}  gxh4 {[%clk 0:00:04]} 46. gxh4 {[%clk 0:02:15]}  Rd3+ {[%clk 0:00:04]} 47. Kg2 {[%clk 0:02:15]}  Rd6 {[%clk 0:00:05]} 48. Kg3 {[%clk 0:02:14]}  Kg8 {[%clk 0:00:05]} 49. h5 {[%clk 0:02:14]}  Rd3+ {[%clk 0:00:05]} 50. f3 {[%clk 0:02:14]}  Kf8 {[%clk 0:00:06]} 51. Ra7 {[%clk 0:02:14]}  Rd5 {[%clk 0:00:06]} 52. Kf4 {[%clk 0:02:13]}  Rd4+ {[%clk 0:00:06]} 53. Ke3 {[%clk 0:02:14]}  Rd5 {[%clk 0:00:06]} 54. Ke4 {[%clk 0:02:14]}  Rd1 {[%clk 0:00:05]} 55. h6 {[%clk 0:02:14]}  Re1+ {[%clk 0:00:05]} 56. Kf4 {[%clk 0:02:14]}  gxh6 {[%clk 0:00:06]} 57. Nxh6 {[%clk 0:02:11]}  Rb1 {[%clk 0:00:05]} 58. Ng4 {[%clk 0:02:11]}  Rb4+ {[%clk 0:00:04]} 59. Kg3 {[%clk 0:02:12]}  Rb3 {[%clk 0:00:05]} 60. Nxf6 {[%clk 0:02:11]}  Rxf3+ {[%clk 0:00:04]} 61. Kg4 {[%clk 0:02:06]}  Rf4+ {[%clk 0:00:05]} 62. Kg5 {[%clk 0:02:01]}  Rxf5+ {[%clk 0:00:01]} 63. Kg6 {[%clk 0:02:01]} 1-0


[Site "https://www.chess.com"]

[Event "Titled Tuesday Blitz December 27 Late 2022"]
[White "Sargsyan, Anna M."]
[Black "Rego, Pedro Filipe"]
[WhiteFideId "13308130"]
[BlackFideId "1904310"]
[WhiteElo "2375"]
[BlackElo "2312"]
[Result "1-0"]
[Round "09"]
[TimeControl "180+2"]
[Date "2022.12.27"]
[WhiteClock "0:00:07"]
[BlackClock "0:00:33"]

1. d4 {[%clk 0:02:28]}  Nf6 {[%clk 0:02:55]} 2. c4 {[%clk 0:02:29]}  c5 {[%clk 0:02:54]} 3. d5 {[%clk 0:02:28]}  b5 {[%clk 0:02:55]} 4. Qc2 {[%clk 0:02:27]}  Bb7 {[%clk 0:02:54]} 5. e4 {[%clk 0:02:28]}  d6 {[%clk 0:02:53]} 6. cxb5 {[%clk 0:02:27]}  a6 {[%clk 0:02:53]} 7. bxa6 {[%clk 0:02:26]}  Bxa6 {[%clk 0:02:53]} 8. Bxa6 {[%clk 0:02:21]}  Nxa6 {[%clk 0:02:53]} 9. Nc3 {[%clk 0:02:20]}  g6 {[%clk 0:02:53]} 10. Nf3 {[%clk 0:02:16]}  Bg7 {[%clk 0:02:54]} 11. O-O {[%clk 0:02:16]}  O-O {[%clk 0:02:55]} 12. Bf4 {[%clk 0:02:08]}  Nh5 {[%clk 0:02:53]} 13. Be3 {[%clk 0:02:05]}  f5 {[%clk 0:02:46]} 14. exf5 {[%clk 0:02:00]}  Rxf5 {[%clk 0:02:45]} 15. Rad1 {[%clk 0:01:53]}  Nb4 {[%clk 0:02:44]} 16. Qb3 {[%clk 0:01:50]}  Nf4 {[%clk 0:02:40]} 17. Bxf4 {[%clk 0:01:43]}  Rxf4 {[%clk 0:02:40]} 18. a3 {[%clk 0:01:39]}  Na6 {[%clk 0:02:39]} 19. Ng5 {[%clk 0:01:39]}  Nc7 {[%clk 0:02:35]} 20. Rfe1 {[%clk 0:01:34]}  Bd4 {[%clk 0:02:21]} 21. Nh3 {[%clk 0:01:26]}  Rf7 {[%clk 0:02:09]} 22. Kh1 {[%clk 0:01:23]}  Bxf2 {[%clk 0:02:05]} 23. Rf1 {[%clk 0:01:22]}  Qf8 {[%clk 0:02:03]} 24. Qb7 {[%clk 0:01:11]}  Rb8 {[%clk 0:01:50]} 25. Qxc7 {[%clk 0:01:08]}  Rxb2 {[%clk 0:01:51]} 26. Ng5 {[%clk 0:00:54]}  Rf5 {[%clk 0:01:19]} 27. Ne6 {[%clk 0:00:50]}  Qe8 {[%clk 0:01:15]} 28. Ne4 {[%clk 0:00:45]}  Rf7 {[%clk 0:01:09]} 29. Nxf2 {[%clk 0:00:36]}  Rbxf2 {[%clk 0:01:10]} 30. Rxf2 {[%clk 0:00:36]}  Rxf2 {[%clk 0:01:10]} 31. Kg1 {[%clk 0:00:29]}  Rf5 {[%clk 0:01:05]} 32. Qd8 {[%clk 0:00:26]}  Qxd8 {[%clk 0:00:59]} 33. Nxd8 {[%clk 0:00:27]}  Kf8 {[%clk 0:00:58]} 34. a4 {[%clk 0:00:26]}  Ke8 {[%clk 0:00:59]} 35. Nc6 {[%clk 0:00:25]}  Kd7 {[%clk 0:00:57]} 36. a5 {[%clk 0:00:26]}  e6 {[%clk 0:00:56]} 37. a6 {[%clk 0:00:26]}  Rf8 {[%clk 0:00:53]} 38. a7 {[%clk 0:00:20]}  Ra8 {[%clk 0:00:52]} 39. Rb1 {[%clk 0:00:18]}  Kc7 {[%clk 0:00:52]} 40. Rb8 {[%clk 0:00:18]}  Rxa7 {[%clk 0:00:53]} 41. Nxa7 {[%clk 0:00:15]}  Kxb8 {[%clk 0:00:53]} 42. dxe6 {[%clk 0:00:14]}  Kc7 {[%clk 0:00:53]} 43. e7 {[%clk 0:00:11]}  Kd7 {[%clk 0:00:52]} 44. Nc8 {[%clk 0:00:10]}  d5 {[%clk 0:00:51]} 45. Nb6+ {[%clk 0:00:10]}  Kxe7 {[%clk 0:00:51]} 46. Nxd5+ {[%clk 0:00:11]}  Kd6 {[%clk 0:00:52]} 47. Nc3 {[%clk 0:00:10]}  Ke5 {[%clk 0:00:52]} 48. Kf2 {[%clk 0:00:11]}  Kd4 {[%clk 0:00:53]} 49. Nb5+ {[%clk 0:00:11]}  Kd3 {[%clk 0:00:52]} 50. Ke1 {[%clk 0:00:07]}  c4 {[%clk 0:00:51]} 51. Kd1 {[%clk 0:00:07]}  c3 {[%clk 0:00:51]} 52. Nd6 {[%clk 0:00:07]}  Ke3 {[%clk 0:00:50]} 53. Ne8 {[%clk 0:00:06]}  Kf2 {[%clk 0:00:49]} 54. g4 {[%clk 0:00:07]}  Kg2 {[%clk 0:00:49]} 55. g5 {[%clk 0:00:06]}  Kxh2 {[%clk 0:00:39]} 56. Nf6 {[%clk 0:00:06]}  Kg3 {[%clk 0:00:39]} 57. Nxh7 {[%clk 0:00:07]}  Kf4 {[%clk 0:00:36]} 58. Kc2 {[%clk 0:00:07]}  Ke5 {[%clk 0:00:36]} 59. Kxc3 {[%clk 0:00:07]}  Ke6 {[%clk 0:00:37]} 60. Kd4 {[%clk 0:00:07]}  Kf7 {[%clk 0:00:35]} 61. Ke5 {[%clk 0:00:07]}  Kg7 {[%clk 0:00:36]} 62. Nf6 {[%clk 0:00:07]}  Kf7 {[%clk 0:00:36]} 63. Kd5 {[%clk 0:00:07]}  Ke7 {[%clk 0:00:36]} 64. Ke5 {[%clk 0:00:08]}  Kf7 {[%clk 0:00:37]} 65. Kd6 {[%clk 0:00:08]}  Kg7 {[%clk 0:00:34]} 66. Ke7 {[%clk 0:00:08]}  Kh8 {[%clk 0:00:34]} 67. Ng4 {[%clk 0:00:07]}  Kg7 {[%clk 0:00:35]} 68. Ne5 {[%clk 0:00:07]}  Kh7 {[%clk 0:00:35]} 69. Kf6 {[%clk 0:00:07]}  Kg8 {[%clk 0:00:32]} 70. Kxg6 {[%clk 0:00:07]}  Kh8 {[%clk 0:00:32]} 71. Kh6 {[%clk 0:00:08]}  Kg8 {[%clk 0:00:33]} 72. g6 {[%clk 0:00:08]}  Kh8 {[%clk 0:00:32]} 73. Nf3 {[%clk 0:00:07]}  Kg8 {[%clk 0:00:32]} 74. g7 {[%clk 0:00:07]}  Kf7 {[%clk 0:00:33]} 75. Kh7 {[%clk 0:00:07]} 1-0


[Site "https://www.chess.com"]

[Event "Titled Tuesday Blitz December 27 Late 2022"]
[White "Schmidt, Harald"]
[Black "Fisher_TheGalactic"]
[WhiteFideId "4648358"]
[WhiteElo "2347"]
[BlackElo "2477"]
[Result "0-1"]
[Round "09"]
[TimeControl "180+2"]
[Date "2022.12.27"]
[WhiteClock "0:00:19"]
[BlackClock "0:00:40"]

1. c4 {[%clk 0:02:56]}  b6 {[%clk 0:02:58]} 2. Nc3 {[%clk 0:02:54]}  Bb7 {[%clk 0:02:58]} 3. e4 {[%clk 0:02:52]}  e6 {[%clk 0:02:58]} 4. a3 {[%clk 0:02:51]}  c5 {[%clk 0:02:51]} 5. Nf3 {[%clk 0:02:48]}  Nc6 {[%clk 0:02:51]} 6. g3 {[%clk 0:02:45]}  d6 {[%clk 0:02:47]} 7. Bg2 {[%clk 0:02:44]}  Nf6 {[%clk 0:02:46]} 8. O-O {[%clk 0:02:43]}  g6 {[%clk 0:02:45]} 9. d4 {[%clk 0:02:41]}  Bg7 {[%clk 0:02:44]} 10. d5 {[%clk 0:02:38]}  exd5 {[%clk 0:02:44]} 11. exd5 {[%clk 0:02:24]}  Ne7 {[%clk 0:02:43]} 12. Re1 {[%clk 0:02:17]}  O-O {[%clk 0:02:42]} 13. Bf4 {[%clk 0:02:12]}  Nh5 {[%clk 0:02:25]} 14. Bg5 {[%clk 0:02:09]}  Nf6 {[%clk 0:02:19]} 15. Qd2 {[%clk 0:02:07]}  Qd7 {[%clk 0:02:17]} 16. Bh6 {[%clk 0:02:00]}  Nf5 {[%clk 0:02:11]} 17. Bxg7 {[%clk 0:01:59]}  Nxg7 {[%clk 0:02:12]} 18. Ng5 {[%clk 0:01:53]}  h6 {[%clk 0:01:56]} 19. Nge4 {[%clk 0:01:51]}  Nxe4 {[%clk 0:01:48]} 20. Nxe4 {[%clk 0:01:50]}  f5 {[%clk 0:01:49]} 21. Qxh6 {[%clk 0:01:30]}  fxe4 {[%clk 0:01:43]} 22. Qxg6 {[%clk 0:01:19]}  Qf5 {[%clk 0:01:38]} 23. Bxe4 {[%clk 0:01:03]}  Qxg6 {[%clk 0:01:30]} 24. Bxg6 {[%clk 0:01:03]}  Rf6 {[%clk 0:01:31]} 25. Bd3 {[%clk 0:01:00]}  b5 {[%clk 0:01:26]} 26. b3 {[%clk 0:00:48]}  Nf5 {[%clk 0:01:22]} 27. f4 {[%clk 0:00:43]}  Nd4 {[%clk 0:01:21]} 28. Kf2 {[%clk 0:00:42]}  Nxb3 {[%clk 0:01:19]} 29. Rab1 {[%clk 0:00:38]}  Nd4 {[%clk 0:01:18]} 30. cxb5 {[%clk 0:00:38]}  Bxd5 {[%clk 0:01:18]} 31. a4 {[%clk 0:00:31]}  Re6 {[%clk 0:01:03]} 32. Red1 {[%clk 0:00:28]}  Rae8 {[%clk 0:00:58]} 33. f5 {[%clk 0:00:26]}  Re3 {[%clk 0:00:57]} 34. a5 {[%clk 0:00:23]}  Bb3 {[%clk 0:00:43]} 35. Rd2 {[%clk 0:00:19]}  Nf3 {[%clk 0:00:40]} 0-1


[Site "https://www.chess.com"]